fUST/lending_fUST_20250911
["ID","MTS","AMOUNT","RATE_DAILY","PERIOD"]
[384817925,1757571822834,-480.0,0.00013698,2]
[384817926,1757571823049,-487.99945232,0.00013698,2]
[384817927,1757571823078,-480.0,0.00013698,2]
[384817928,1757571823108,-480.0,0.00013698,2]
[384817929,1757571823137,-480.0,0.00013698,2]
[384817930,1757571823165,-485.11448873,0.00013698,2]
[384817931,1757571823196,-483.47439631,0.00013698,2]
[384817932,1757571823227,-327.42979184,0.00013698,2]
[384817933,1757571823257,-480.0,0.00013698,2]
[384817934,1757571823289,-480.0,0.00013698,2]
[384817935,1757571823322,-480.0,0.00013698,2]
[384817936,1757571823355,-191.9737416,0.00013698,2]
[384817937,1757571823655,-221.43588836,0.00013698,2]
[384817938,1757571823673,-66.59037004,0.00013698,2]
[384817939,1757571823682,-413.40962996,0.00013698,2]
[384817940,1757571831664,177.57,0.00012329,2]
[384817941,1757571842116,887.9,0.00012329,2]
[384817942,1757571848357,1686.23220681,0.00013291,2]
[384817944,1757571914072,-1759.10124032,0.00013425,2]
[384817945,1757571914107,-2030.296672,0.00013561,2]
[384817946,1757571914142,-500.0,0.00013697,2]
[384817947,1757571914175,-300.0,0.00013697,2]
[384817948,1757571914206,-300.0,0.00013697,2]
[384817949,1757571914241,-66.59037004,0.00013698,2]
[384817950,1757571924256,-207.53156748,0.00013698,2]
[384817951,1757571924291,-480.0,0.00013698,2]
[384817952,1757571924323,-480.0,0.00013698,2]
[384817953,1757571924356,-492.72059287,0.00013698,2]
[384817954,1757571924388,-481.21300615,0.00013698,2]
[384817955,1757571924421,-480.0,0.00013698,2]
[384817956,1757571924454,-480.0,0.00013698,2]
[384817957,1757571924486,-480.0,0.00013698,2]
[384817958,1757571924518,-491.3623074,0.00013698,2]
[384817959,1757571924550,-480.0,0.00013698,2]
[384817960,1757571924584,-414.3550522,0.00013698,2]
[384817961,1757571924841,-65.6449478,0.00013698,2]
[384817962,1757571924874,-480.0,0.00013698,2]
[384817963,1757571924907,-492.62111355,0.00013698,2]
[384817964,1757571924940,-480.0,0.00013698,2]
[384817965,1757571924976,-621.58576868,0.00013698,2]
[384817966,1757571925009,-480.0,0.00013698,2]
[384817967,1757571925043,-480.0,0.00013698,2]
[384817968,1757571925076,-480.0,0.00013698,2]
[384817969,1757571925109,-480.0,0.00013698,2]
[384817970,1757571925141,-492.80369066,0.00013698,2]
[384817971,1757571925174,-414.69895862,0.00013698,2]
[384817972,1757571934197,-7524.86580496,0.00013561,2]
[384817973,1757571934410,-2626.61755504,0.00013561,2]
[384817974,1757571934446,-65.30104138,0.00013698,2]
[384817975,1757571934481,-480.0,0.00013698,2]
[384817976,1757571934516,-482.34798888,0.00013698,2]
[384817977,1757571934551,-480.0,0.00013698,2]
[384817978,1757571934587,-480.0,0.00013698,2]
[384817979,1757571934623,-291.4768294,0.00013698,2]
[384817980,1757571934873,-188.5231706,0.00013698,2]
[384817981,1757571942732,-2364.6210472,0.00013561,2]
[384817982,1757571942765,-480.0,0.00013698,2]
[384817983,1757571942797,-485.32724645,0.00013698,2]
[384817984,1757571942828,-544.97236515,0.00013698,2]
[384817985,1757571942859,-485.41263667,0.00013698,2]
[384817986,1757571942891,-480.0,0.00013698,2]
[384817987,1757571943027,-319.34340906,0.00013698,2]
[384817988,1757571944570,562.36,0.00012329,2]
[384817989,1757571955246,684.47,0.00012329,2]
[384817990,1757571965641,570.39,0.00012329,2]
[384817993,1757571976448,475.32,0.00012329,2]
[384817997,1757571986850,396.1,0.00012329,2]
[384817998,1757571993166,204.36318428,0.00013287,2]
[384817999,1757571997855,330.09,0.00012329,2]
[384818001,1757572022918,7339.27681572,0.00012807,2]
[384818002,1757572022945,2660.72318428,0.00012807,2]
[384818003,1757572029347,695.32,0.00012329,2]
[384818004,1757572036130,157.0,7.5e-07,2]
[384818005,1757572037292,157.0,7.5e-07,2]
[384818006,1757572038450,157.0,7.5e-07,2]
[384818007,1757572039622,157.0,7.5e-07,2]
[384818008,1757572040014,159.19,0.00012329,2]
[384818009,1757572040820,157.0,7.5e-07,2]
[384818010,1757572041985,157.0,7.5e-07,2]
[384818012,1757572050436,795.95,0.00012329,2]
[384818013,1757572054257,-500.0,0.00013424,2]
[384818014,1757572054295,-500.0,0.0001356,2]
[384818015,1757572054335,-500.0,0.00013697,2]
[384818016,1757572054371,-165.07563938,0.00013698,2]
[384818017,1757572054405,-485.07517997,0.00013698,2]
[384818018,1757572054438,-480.0,0.00013698,2]
[384818019,1757572054471,-480.0,0.00013698,2]
[384818020,1757572054503,-480.0,0.00013698,2]
[384818021,1757572054534,-486.4080932,0.00013698,2]
[384818022,1757572054566,-480.0,0.00013698,2]
[384818023,1757572054599,-406.8921749,0.00013698,2]
[384818024,1757572064224,-4818.83170381,0.00013561,2]
[384818025,1757572067450,-480.0,0.00013698,2]
[384818026,1757572067481,-480.0,0.00013698,2]
[384818027,1757572067511,-480.0,0.00013698,2]
[384818028,1757572067544,-480.0,0.00013698,2]
[384818029,1757572067576,-480.0,0.00013698,2]
[384818030,1757572067607,-483.17209252,0.00013698,2]
[384818031,1757572067639,-480.0,0.00013698,2]
[384818032,1757572067670,-484.56787138,0.00013698,2]
[384818033,1757572067701,-480.0,0.00013698,2]
[384818034,1757572067732,-480.0,0.00013698,2]
[384818035,1757572079300,-480.0,0.00013698,2]
[384818036,1757572079331,-480.0,0.00013698,2]
[384818037,1757572079364,-484.59405022,0.00013698,2]
[384818038,1757572079396,-480.0,0.00013698,2]
[384818039,1757572079429,-477.72843832,0.00013698,2]
[384818040,1757572079463,-480.0,0.00013698,2]
[384818041,1757572079494,-480.0,0.00013698,2]
[384818042,1757572079525,-480.0,0.00013698,2]
[384818043,1757572079557,-480.0,0.00013698,2]
[384818044,1757572079587,-480.0,0.00013698,2]
[384818054,1757572149394,-549.1552618,0.00013425,2]
[384818055,1757572149429,-3030.296672,0.00013561,2]
[384818056,1757572149461,-500.0,0.00013697,2]
[384818057,1757572149492,-300.0,0.00013697,2]
[384818058,1757572149524,-480.0,0.00013698,2]
[384818059,1757572149716,-480.0,0.00013698,2]
[384818060,1757572149747,-480.0,0.00013698,2]
[384818061,1757572149778,-480.0,0.00013698,2]
[384818062,1757572149808,-480.0,0.00013698,2]
[384818063,1757572149841,-480.0,0.00013698,2]
[384818064,1757572149872,-482.35038607,0.00013698,2]
[384818065,1757572149904,-480.0,0.00013698,2]
[384818066,1757572149935,-480.0,0.00013698,2]
[384818067,1757572149966,-480.0,0.00013698,2]
[384818068,1757572149999,-480.0,0.00013698,2]
[384818069,1757572150031,-173.96965373,0.00013698,2]
[384818070,1757572159378,-1098.3105236,0.00013561,2]
[384818071,1757572159409,-47.3699204,0.00013698,2]
[384818072,1757572159439,-480.0,0.00013698,2]
[384818073,1757572159470,-480.0,0.00013698,2]
[384818074,1757572159500,-480.0,0.00013698,2]
[384818075,1757572159529,-480.0,0.00013698,2]
[384818076,1757572159559,-480.0,0.00013698,2]
[384818077,1757572159589,-480.0,0.00013698,2]
[384818078,1757572159618,-480.0,0.00013698,2]
[384818079,1757572159759,-480.0,0.00013698,2]
[384818080,1757572160011,-480.0,0.00013698,2]
[384818081,1757572160041,-480.0,0.00013698,2]
[384818082,1757572160071,-480.0,0.00013698,2]
[384818083,1757572160100,-480.0,0.00013698,2]
[384818084,1757572160130,-480.0,0.00013698,2]
[384818085,1757572160160,-480.0,0.00013698,2]
[384818086,1757572160189,-480.0,0.00013698,2]
[384818087,1757572160219,-480.75762213,0.00013698,2]
[384818088,1757572160248,-480.87012165,0.00013698,2]
[384818089,1757572160282,-480.0,0.00013698,2]
[384818090,1757572160391,-480.0,0.00013698,2]
[384818091,1757572160422,-480.0,0.00013698,2]
[384818092,1757572160457,-480.0,0.00013698,2]
[384818093,1757572160489,-370.81453642,0.00013698,2]
[384818094,1757572160522,-480.0,0.00013698,2]
[384818095,1757572160552,-480.0,0.00013698,2]
[384818096,1757572160584,-480.0,0.00013698,2]
[384818097,1757572160617,-480.0,0.00013698,2]
[384818098,1757572160648,-480.0,0.00013698,2]
[384818099,1757572160681,-481.29217265,0.00013698,2]
[384818100,1757572160713,-135.79658186,0.00013698,2]
[384818105,1757572169401,-549.1552618,0.00013561,2]
[384818106,1757572169444,-344.20341814,0.00013698,2]
[384818107,1757572169475,-480.0,0.00013698,2]
[384818108,1757572169508,-480.0,0.00013698,2]
[384818109,1757572169540,-480.0,0.00013698,2]
[384818110,1757572169573,-480.0,0.00013698,2]
[384818111,1757572169605,-480.0,0.00013698,2]
[384818112,1757572169637,-480.0,0.00013698,2]
[384818113,1757572169669,-480.0,0.00013698,2]
[384818114,1757572169701,-510.7184164,0.00013698,2]
[384818115,1757572169732,-206.04576794,0.00013698,2]
[384818116,1757572169891,-59.76427144,0.00013698,2]
[384818117,1757572169925,-480.0,0.00013698,2]
[384818118,1757572169959,-480.0,0.00013698,2]
[384818119,1757572169993,-480.0,0.00013698,2]
[384818120,1757572170027,-480.0,0.00013698,2]
[384818121,1757572170061,-480.0,0.00013698,2]
[384818122,1757572170209,-480.0,0.00013698,2]
[384818123,1757572170244,-480.0,0.00013698,2]
[384818124,1757572170277,-480.0,0.00013698,2]
[384818125,1757572170314,-350.4520951,0.00013698,2]
[384818126,1757572170345,-480.0,0.00013698,2]
[384818127,1757572170376,-59.57726692,0.00013698,2]
[384818128,1757572170547,-420.42273308,0.00013698,2]
[384818129,1757572170578,-480.0,0.00013698,2]
[384818130,1757572170609,-480.0,0.00013698,2]
[384818131,1757572170640,-480.0,0.00013698,2]
[384818132,1757572170670,-480.0,0.00013698,2]
[384818133,1757572170700,-480.0,0.00013698,2]
[384818134,1757572170736,-480.0,0.00013698,2]
[384818135,1757572170767,-480.0,0.00013698,2]
[384818136,1757572170798,-480.0,0.00013698,2]
[384818137,1757572170828,-480.0,0.00013698,2]
[384818138,1757572170860,-39.16453384,0.00013698,2]
[384818139,1757572170980,-440.83546616,0.00013698,2]
[384818140,1757572171013,-480.0,0.00013698,2]
[384818141,1757572171046,-480.0,0.00013698,2]
[384818142,1757572171077,-480.0,0.00013698,2]
[384818143,1757572171109,-480.56057191,0.00013698,2]
[384818144,1757572171140,-480.0,0.00013698,2]
[384818145,1757572171172,-480.0,0.00013698,2]
[384818146,1757572171204,-480.0,0.00013698,2]
[384818147,1757572171236,-485.85911304,0.00013698,2]
[384818148,1757572171268,-482.05577289,0.00013698,2]
[384818149,1757572171410,-480.0,0.00013698,2]
[384818150,1757572171443,-480.0,0.00013698,2]
[384818151,1757572171474,-480.0,0.00013698,2]
[384818152,1757572171506,-480.0,0.00013698,2]
[384818153,1757572171537,-481.24240663,0.00013698,2]
[384818154,1757572171568,-480.0,0.00013698,2]
[384818155,1757572171600,-480.0,0.00013698,2]
[384818156,1757572171631,-480.0,0.00013698,2]
[384818157,1757572171663,-503.58302065,0.00013698,2]
[384818158,1757572171696,-480.0,0.00013698,2]
[384818159,1757572171849,-480.0,0.00013698,2]
[384818160,1757572171882,-480.0,0.00013698,2]
[384818161,1757572171914,-481.41760078,0.00013698,2]
[384818162,1757572171945,-480.0,0.00013698,2]
[384818163,1757572171976,-480.0,0.00013698,2]
[384818164,1757572172008,-480.0,0.00013698,2]
[384818165,1757572172039,-480.0,0.00013698,2]
[384818166,1757572172070,-480.0,0.00013698,2]
[384818167,1757572172101,-480.0,0.00013698,2]
[384818168,1757572172132,-485.29137772,0.00013698,2]
[384818169,1757572173180,903.30580983,0.0002337,30]
[384818170,1757572179423,-480.0,0.00013698,2]
[384818171,1757572179454,-480.0,0.00013698,2]
[384818172,1757572179486,-481.64289775,0.00013698,2]
[384818173,1757572179516,-480.0,0.00013698,2]
[384818174,1757572179547,-484.49284724,0.00013698,2]
[384818175,1757572179577,-480.0,0.00013698,2]
[384818176,1757572179608,-480.0,0.00013698,2]
[384818177,1757572179639,-480.0,0.00013698,2]
[384818178,1757572179670,-480.0,0.00013698,2]
[384818179,1757572179701,-480.0,0.00013698,2]
[384818180,1757572179840,-480.0,0.00013698,2]
[384818181,1757572179872,-481.39055213,0.00013698,2]
[384818182,1757572179910,-480.0,0.00013698,2]
[384818183,1757572179941,-480.0,0.00013698,2]
[384818184,1757572179972,-480.0,0.00013698,2]
[384818185,1757572180004,-480.0,0.00013698,2]
[384818186,1757572180047,-480.0,0.00013698,2]
[384818187,1757572180088,-481.91057233,0.00013698,2]
[384818188,1757572180130,-480.0,0.00013698,2]
[384818189,1757572180171,-219.27729794,0.00013698,2]
[384818190,1757572180212,-434.39312541,0.00013698,2]
[384818191,1757572180421,-46.06690438,0.00013698,2]
[384818192,1757572180458,-480.0,0.00013698,2]
[384818193,1757572180497,-229.16497638,0.00013698,2]
[384818194,1757572180535,-480.0,0.00013698,2]
[384818195,1757572180570,-480.0,0.00013698,2]
[384818196,1757572180608,-480.0,0.00013698,2]
[384818197,1757572180645,-480.0,0.00013698,2]
[384818198,1757572180681,-480.0,0.00013698,2]
[384818199,1757572180717,-480.0,0.00013698,2]
[384818200,1757572180752,-535.61053109,0.00013698,2]
[384818201,1757572180787,-480.0,0.00013698,2]
[384818202,1757572180823,-218.3251763,0.00013698,2]
[384818203,1757572180994,-261.6748237,0.00013698,2]
[384818204,1757572181031,-480.0,0.00013698,2]
[384818205,1757572181072,-482.48428386,0.00013698,2]
[384818206,1757572181108,-480.0,0.00013698,2]
[384818207,1757572181141,-480.0,0.00013698,2]
[384818208,1757572181318,-480.0,0.00013698,2]
[384818209,1757572181349,-480.0,0.00013698,2]
[384818210,1757572181378,-480.0,0.00013698,2]
[384818211,1757572181408,-480.0,0.00013698,2]
[384818212,1757572181438,-480.0,0.00013698,2]
[384818213,1757572181468,-351.69178488,0.00013698,2]
[384818214,1757572181613,-128.30821512,0.00013698,2]
[384818215,1757572181643,-481.00994577,0.00013698,2]
[384818216,1757572181673,-480.0,0.00013698,2]
[384818217,1757572181702,-480.0,0.00013698,2]
[384818218,1757572181731,-480.0,0.00013698,2]
[384818219,1757572181760,-480.0,0.00013698,2]
[384818220,1757572181790,-480.0,0.00013698,2]
[384818221,1757572181821,-481.28022692,0.00013698,2]
[384818222,1757572181851,-482.05137197,0.00013698,2]
[384818223,1757572181881,-480.0,0.00013698,2]
[384818224,1757572181910,-480.85952603,0.00013698,2]
[384818225,1757572189444,-480.0,0.00013698,2]
[384818226,1757572189478,-480.0,0.00013698,2]
[384818227,1757572189511,-480.0,0.00013698,2]
[384818228,1757572189544,-480.56793342,0.00013698,2]
[384818229,1757572189577,-480.0,0.00013698,2]
[384818230,1757572189610,-488.73917229,0.00013698,2]
[384818231,1757572189643,-480.0,0.00013698,2]
[384818232,1757572189675,-275.92701932,0.00013698,2]
[384818233,1757572189707,-1164.99,0.00013698,2]
[384818234,1757572189906,-480.0,0.00013698,2]
[384818235,1757572189937,-480.0,0.00013698,2]
[384818236,1757572189971,-480.0,0.00013698,2]
[384818237,1757572190004,-480.0,0.00013698,2]
[384818238,1757572190037,-480.0,0.00013698,2]
[384818239,1757572190068,-480.0,0.00013698,2]
[384818240,1757572190107,-480.0,0.00013698,2]
[384818241,1757572190137,-480.0,0.00013698,2]
[384818242,1757572190167,-481.24041176,0.00013698,2]
[384818243,1757572190196,-480.56902108,0.00013698,2]
[384818244,1757572210348,666.0,0.00012895,2]
[384818246,1757572229481,-1098.3105236,0.00013561,2]
[384818247,1757572229514,-1000.0,0.0001369,2]
[384818248,1757572229548,-151.0,0.0001369,2]
[384818249,1757572229581,-1028.92210369,0.0001369,2]
[384818250,1757572229615,-151.0,0.0001369,2]
[384818251,1757572229770,-151.0,0.0001369,2]
[384818252,1757572229804,-163.00107706,0.0001369,2]
[384818253,1757572229839,-151.0,0.0001369,2]
[384818254,1757572229872,-235.0241308,0.0001369,2]
[384818255,1757572229907,-151.0,0.0001369,2]
[384818256,1757572229942,-151.0,0.0001369,2]
[384818257,1757572229975,-187.78006525,0.0001369,2]
[384818258,1757572230010,-151.0,0.0001369,2]
[384818259,1757572230043,-151.0,0.0001369,2]
[384818260,1757572230078,-6.9341992,0.0001369,2]
[384818261,1757572230319,-144.0658008,0.0001369,2]
[384818262,1757572230354,-151.0,0.0001369,2]
[384818263,1757572230388,-151.0,0.0001369,2]
[384818264,1757572230420,-151.0,0.0001369,2]
[384818265,1757572230452,-151.0,0.0001369,2]
[384818266,1757572230485,-151.0,0.0001369,2]
[384818267,1757572230518,-151.0,0.0001369,2]
[384818268,1757572230551,-151.0,0.0001369,2]
[384818269,1757572230583,-166.15641849,0.0001369,2]
[384818270,1757572230616,-500.0,0.00013697,2]
[384818271,1757572230648,-1200.0,0.00013697,2]
[384818272,1757572230680,-480.0,0.00013698,2]
[384818273,1757572230712,-480.0,0.00013698,2]
[384818274,1757572230745,-480.0,0.00013698,2]
[384818275,1757572230777,-480.0,0.00013698,2]
[384818313,1757572232522,-480.0,0.00013698,2]
[384818315,1757572232532,-480.0,0.00013698,2]
[384818317,1757572232541,-480.0,0.00013698,2]
[384818319,1757572232551,-414.93853774,0.00013698,2]
[384818322,1757572232570,-480.0,0.00013698,2]
[384818324,1757572232581,-480.0,0.00013698,2]
[384818325,1757572232591,-480.0,0.00013698,2]
[384818326,1757572232601,-480.0,0.00013698,2]
[384818327,1757572232612,-480.0,0.00013698,2]
[384818328,1757572232623,-481.5347108,0.00013698,2]
[384818330,1757572232633,-480.0,0.00013698,2]
[384818332,1757572232642,-480.0,0.00013698,2]
[384818335,1757572232652,-480.0,0.00013698,2]
[384818337,1757572232661,-480.0,0.00013698,2]
[384818339,1757572232670,-480.0,0.00013698,2]
[384818341,1757572232680,-480.0,0.00013698,2]
[384818343,1757572232689,-561.42907778,0.00013698,2]
[384818345,1757572232699,-480.0,0.00013698,2]
[384818347,1757572232709,-480.0,0.00013698,2]
[384818349,1757572232719,-480.0,0.00013698,2]
[384818351,1757572232729,-487.78454994,0.00013698,2]
[384818353,1757572232739,-480.0,0.00013698,2]
[384818355,1757572232748,-480.0,0.00013698,2]
[384818357,1757572232758,-480.0,0.00013698,2]
[384818359,1757572232767,-480.0,0.00013698,2]
[384818361,1757572232777,-400.61808416,0.00013698,2]
[384818363,1757572232790,-83.55405614,0.00013698,2]
[384818365,1757572232800,-480.0,0.00013698,2]
[384818368,1757572232810,-501.60241314,0.00013698,2]
[384818370,1757572232820,-480.0,0.00013698,2]
[384818372,1757572232830,-480.0,0.00013698,2]
[384818373,1757572232839,-480.0,0.00013698,2]
[384818375,1757572232849,-480.0,0.00013698,2]
[384818376,1757572232858,-480.0,0.00013698,2]
[384818377,1757572232868,-480.0,0.00013698,2]
[384818378,1757572232877,-480.0,0.00013698,2]
[384818379,1757572232886,-480.0,0.00013698,2]
[384818380,1757572232898,-480.0,0.00013698,2]
[384818381,1757572232908,-480.0,0.00013698,2]
[384818382,1757572232923,-480.0,0.00013698,2]
[384818383,1757572232932,-480.0,0.00013698,2]
[384818384,1757572232941,-480.0,0.00013698,2]
[384818385,1757572232951,-480.0,0.00013698,2]
[384818386,1757572232961,-480.0,0.00013698,2]
[384818387,1757572232970,-480.0,0.00013698,2]
[384818388,1757572232981,-477.09099659,0.00013698,2]
[384818389,1757572232994,-480.0,0.00013698,2]
[384818390,1757572233003,-480.0,0.00013698,2]
[384818391,1757572233013,-481.65457163,0.00013698,2]
[384818392,1757572233022,-480.0,0.00013698,2]
[384818393,1757572233031,-348.35983084,0.00013698,2]
[384818394,1757572233040,-480.0,0.00013698,2]
[384818395,1757572233050,-480.0,0.00013698,2]
[384818396,1757572233059,-480.0,0.00013698,2]
[384818397,1757572233068,-480.0,0.00013698,2]
[384818398,1757572233078,-480.0,0.00013698,2]
[384818399,1757572233087,-480.0,0.00013698,2]
[384818400,1757572233096,-480.0,0.00013698,2]
[384818401,1757572233105,-480.0,0.00013698,2]
[384818402,1757572233115,-480.0,0.00013698,2]
[384818403,1757572233124,-480.0,0.00013698,2]
[384818404,1757572233133,-480.0,0.00013698,2]
[384818405,1757572233143,-311.29550427,0.00013698,2]
[384818406,1757572233153,-492.83705721,0.00013698,2]
[384818407,1757572233319,-482.48984119,0.00013698,2]
[384818408,1757572233329,-480.0,0.00013698,2]
[384818409,1757572233338,-480.0,0.00013698,2]
[384818410,1757572233348,-480.0,0.00013698,2]
[384818411,1757572233357,-480.0,0.00013698,2]
[384818412,1757572233370,-273.92831237,0.00013698,2]
[384818413,1757572233379,-480.0,0.00013698,2]
[384818414,1757572233389,-480.0,0.00013698,2]
[384818415,1757572233398,-480.0,0.00013698,2]
[384818416,1757572233408,-481.13046401,0.00013698,2]
[384818417,1757572233418,-480.0,0.00013698,2]
[384818418,1757572233428,-482.61,0.00013698,2]
[384818419,1757572233437,-480.0,0.00013698,2]
[384818420,1757572233448,-480.0,0.00013698,2]
[384818421,1757572233463,-480.0,0.00013698,2]
[384818422,1757572233473,-480.0,0.00013698,2]
[384818423,1757572233483,-480.0,0.00013698,2]
[384818424,1757572233492,-483.06228816,0.00013698,2]
[384818425,1757572233502,-480.0,0.00013698,2]
[384818426,1757572233512,-480.0,0.00013698,2]
[384818427,1757572233521,-426.32117359,0.00013698,2]
[384818428,1757572233531,-487.02798018,0.00013698,2]
[384818429,1757572233540,-461.33039903,0.00013698,2]
[384818430,1757572233549,-480.0,0.00013698,2]
[384818431,1757572233559,-480.0,0.00013698,2]
[384818432,1757572233568,-480.0,0.00013698,2]
[384818433,1757572233581,-480.0,0.00013698,2]
[384818434,1757572233591,-480.0,0.00013698,2]
[384818435,1757572233602,-480.0,0.00013698,2]
[384818436,1757572233612,-1000.0,0.00013698,2]
[384818437,1757572233621,-461.61542816,0.00013698,2]
[384818438,1757572233630,-480.0,0.00013698,2]
[384818439,1757572233640,-484.91587264,0.00013698,2]
[384818440,1757572233650,-480.0,0.00013698,2]
[384818441,1757572233660,-480.0,0.00013698,2]
[384818442,1757572233670,-480.0,0.00013698,2]
[384818443,1757572233680,-480.0,0.00013698,2]
[384818444,1757572233691,-433.8127558,0.00013698,2]
[384818445,1757572233711,-480.0,0.00013698,2]
[384818446,1757572233723,-480.0,0.00013698,2]
[384818447,1757572233733,-480.0,0.00013698,2]
[384818448,1757572233743,-480.0,0.00013698,2]
[384818449,1757572233753,-480.0,0.00013698,2]
[384818450,1757572233763,-480.0,0.00013698,2]
[384818451,1757572233773,-480.0,0.00013698,2]
[384818452,1757572233783,-481.17029771,0.00013698,2]
[384818453,1757572233792,-480.0,0.00013698,2]
[384818454,1757572233801,-516.58102096,0.00013698,2]
[384818455,1757572233811,-480.0,0.00013698,2]
[384818456,1757572233821,-480.0,0.00013698,2]
[384818457,1757572233830,-480.0,0.00013698,2]
[384818458,1757572233840,-480.0,0.00013698,2]
[384818459,1757572233850,-500.0,0.00013698,2]
[384818460,1757572233860,-500.0,0.00013698,2]
[384818461,1757572233869,-480.0,0.00013698,2]
[384818462,1757572233879,-480.0,0.00013698,2]
[384818463,1757572233888,-468.34151888,0.00013698,2]
[384818464,1757572233898,-480.0,0.00013698,2]
[384818465,1757572233908,-2160.88,0.00013698,2]
[384818466,1757572233917,-480.0,0.00013698,2]
[384818467,1757572233927,-480.0,0.00013698,2]
[384818468,1757572233936,-480.0,0.00013698,2]
[384818469,1757572233946,-480.0,0.00013698,2]
[384818470,1757572233955,-480.0,0.00013698,2]
[384818471,1757572233965,-484.8203485,0.00013698,2]
[384818472,1757572233974,-480.0,0.00013698,2]
[384818473,1757572233984,-2826.24,0.00013698,2]
[384818474,1757572233993,-480.0,0.00013698,2]
[384818475,1757572234003,-584.00774463,0.00013698,2]
[384818476,1757572234013,-480.0,0.00013698,2]
[384818477,1757572234023,-480.0,0.00013698,2]
[384818478,1757572234032,-480.0,0.00013698,2]
[384818479,1757572234041,-480.0,0.00013698,2]
[384818480,1757572234051,-268.18424751,0.00013698,2]
[384818481,1757572234069,-211.81575249,0.00013698,2]
[384818482,1757572234079,-486.34592129,0.00013698,2]
[384818483,1757572234088,-480.0,0.00013698,2]
[384818484,1757572234098,-480.0,0.00013698,2]
[384818485,1757572234108,-480.0,0.00013698,2]
[384818486,1757572234118,-480.0,0.00013698,2]
[384818487,1757572234127,-480.0,0.00013698,2]
[384818488,1757572234137,-480.0,0.00013698,2]
[384818489,1757572234147,-480.0,0.00013698,2]
[384818490,1757572234156,-480.0,0.00013698,2]
[384818491,1757572234166,-486.17685921,0.00013698,2]
[384818492,1757572234175,-480.0,0.00013698,2]
[384818493,1757572234185,-480.0,0.00013698,2]
[384818494,1757572234194,-480.0,0.00013698,2]
[384818495,1757572234204,-480.0,0.00013698,2]
[384818496,1757572234214,-480.0,0.00013698,2]
[384818497,1757572234223,-480.0,0.00013698,2]
[384818498,1757572234233,-480.0,0.00013698,2]
[384818499,1757572234243,-480.0,0.00013698,2]
[384818500,1757572234253,-480.0,0.00013698,2]
[384818501,1757572234263,-480.0,0.00013698,2]
[384818502,1757572234273,-480.0,0.00013698,2]
[384818503,1757572234282,-480.0,0.00013698,2]
[384818504,1757572234292,-480.0,0.00013698,2]
[384818505,1757572234303,-480.0,0.00013698,2]
[384818506,1757572234312,-965.33,0.00013698,2]
[384818507,1757572234322,-480.0,0.00013698,2]
[384818508,1757572234332,-480.0,0.00013698,2]
[384818509,1757572234341,-480.37112135,0.00013698,2]
[384818510,1757572234351,-480.0,0.00013698,2]
[384818511,1757572234361,-480.0,0.00013698,2]
[384818512,1757572234376,-483.2596327,0.00013698,2]
[384818513,1757572234385,-480.0,0.00013698,2]